Cogmind - Beta 16 @@@ ROGUE MODE // 2026.01.17 @ 12:59:42 Player: beans Result: Destroyed by 9W-JEP(j) with Overtuned Pulse Rifle Performance ------------- Evolutions (0) 0 Regions Visited (3) 600 Robots Destroyed (9) 45 Value Destroyed (312) 312 Prototype IDs (6) 120 Alien Tech Used (0) 0 Bonus (800) 800 TOTAL SCORE: 1877 Bonus ------- Registered with UFD 300 Met Optimus in HQ 500 Cogmind --------- Core Integrity 0/250 Matter 135/300 Energy 250/250 System Corruption 0% Temperature Cool (66) Movement Walking (125) Location -8/Scraptown Parts ------- > --- POWER (1) -------- Ion Engine > --- PROPULSION (2) --- Titanium Leg Improved Carbon-fiber Leg > --- UTILITY (2) ------ Large Storage Unit > --- WEAPON (2) ------- Makeshift Shrapnel Gun Battle Cannon > --- INVENTORY (15) --- Surveybot 17 Chip 0b10 Decoder Chip [Looter] Makeshift Hacking Suite Cobbler Unit Battle Rifle CPS Tube (2) CPS Tube (2) CPS Tube (2) Makeshift Sword DRS Beacon (Ready) Peak State ------------ > --- POWER ------------ Ion Engine > --- PROPULSION ------- Titanium Leg Improved Carbon-fiber Leg > --- UTILITY ---------- Large Storage Unit > --- WEAPON ----------- Gauss Rifle Makeshift Shrapnel Gun > --- INVENTORY -------- Surveybot 17 Chip 0b10 Decoder Chip [Looter] Makeshift Hacking Suite Cobbler Unit Battle Rifle Battle Cannon CPS Tube CPS Tube CPS Tube Makeshift Sword DRS Beacon [Rating: 21] Favorites ----------- Power Ion Engine Engine Ion Engine Propulsion Aluminum Leg Leg Aluminum Leg Utility Cobbler Unit Device Cobbler Unit Storage Large Storage Unit Processor Targeting Computer Weapon Battle Rifle Energy Gun Salvaging Laser Ballistic Gun Battle Rifle Ballistic Cannon Battle Cannon Special Weapon CPS Tube Slashing Weapon Makeshift Sword Build | -11 -10 -10 -8 ------- Run | Yrd Mat Sub Scr Slots Evolved . | . . . . Power . | . . . . Propulsion . | . . . . Utility . | . . . . Weapon . | . . . . Parts Attached 21 | 5 4 2 10 Power 1 | 1 . . . Engine 1 | 1 . . . Core . | . . . . Reactor . | . . . . Propulsion 4 | 2 . . 2 Treads . | . . . . Leg 4 | 2 . . 2 Wheel . | . . . . Hover . | . . . . Flight . | . . . . Utility 6 | . 2 2 2 Device 4 | . 1 2 1 Storage 1 | . . . 1 Processor 1 | . 1 . . Hackware . | . . . . Protection . | . . . . Artifact . | . . . . Weapon 10 | 2 2 . 6 Energy Gun 4 | 2 2 . . Energy Cannon . | . . . . Ballistic Gun 3 | . . . 3 Ballistic Cannon 1 | . . . 1 Launcher . | . . . . Special Weapon 1 | . . . 1 Impact Weapon . | . . . . Slashing Weapon 1 | . . . 1 Piercing Weapon . | . . . . Special Melee Weapon . | . . . . Unidentified Prototypes . | . . . . Parts Lost 1 | . . . 1 Power . | . . . . Propulsion . | . . . . Utility . | . . . . Weapon 1 | . . . 1 Highest Loss Streak 1 | . . . 1 To Critical Strikes . | . . . . Average Backups 4 | . 3 4 5 Power . | . 1 . . Propulsion . | . . . . Utility 1 | . . 2 1 Weapon 2 | . 1 2 2 Tool/Special . | . . . . Unused Backups 14 | . 1 2 11 Power 2 | . . 1 1 Propulsion 1 | . . . 1 Utility 4 | . . 1 3 Weapon 4 | . 1 . 3 Tool/Special 3 | . . . 3 Average Slot Usage (%) 77 | . 89 100 74 Engine 14 | . 14 14 14 Leg 28 | . 28 28 28 Device 9 | . 10 14 9 Storage 2 | . . . 3 Processor 1 | . 7 14 . Energy Gun 5 | . 28 28 1 Ballistic Gun 9 | . . . 11 Ballistic Cannon 5 | . . . 6 Peak Build Rating 21 | 5 9 10 21 Average Rating 11 | 3 7 9 12 On Entrance 5 | . 5 9 9 Avg Prop Armor Cover (%) . | . . . . Naked Turns . | . . . . Heaviest Build 32 | 7 8 9 32 Greatest Support 35 | 20 20 20 35 Greatest Overweight (x) 1 | . . . 1 Average Overweight (x) . | . . . . Largest Inventory Capacity 15 | 5 5 5 15 Average Capacity 6 | 5 5 5 7 Most Carried 13 | 4 5 5 13 Average Carried 5 | . 3 4 5 Final Capacity 15 | 5 5 5 15 Final Carried 11 | 1 5 5 11 Class Distribution -------------------- 95% | Mutant 4% | Derelict-Mutant Dominant Class ---------------- Mutant | -10/Materials Mutant | -10/Subcaves Mutant | -8/Scraptown Resources | -11 -10 -10 -8 ----------- Run | Yrd Mat Sub Scr Matter Collected 1363 | 160 84 66 1053 Remotely . | . . . . Salvage Created 593 | . 20 126 447 Parts 22 | . 3 5 14 Haulers Intercepted . | . . . . Recyclers Shooed . | . . . . Parts Field Recycled . | . . . . Retrieved Matter . | . . . . Parts Self-Destructed 6 | . . 6 . Prevented . | . . . . Parts Restored . | . . . . Kills | -11 -10 -10 -8 ------- Run | Yrd Mat Sub Scr Combat Hostiles Destroyed 8 | . . 2 6 Melee 1 | . . . 1 Guns 6 | . . 2 4 Cannons 1 | . . . 1 Classes Destroyed 6 | . 1 3 2 Tunneler 1 | . 1 . . Swarmer 1 | . . 1 . Cobbler 1 | . . 1 . Subdweller 1 | . . 1 . Bolteater 1 | . . . 1 Scrapper 5 | . . . 5 Best Kill Streak 2 | . 1 2 2 Combat Bots Only 2 | . . 2 2 Max Kills in Single Turn 1 | . 1 1 1 Gunslinging . | . . . . Exploded . | . . . . Melee 1 | . . . 1 Uniques/NPCs Destroyed . | . . . . Combat | -11 -10 -10 -8 -------- Run | Yrd Mat Sub Scr Hostile Shots Fired 35 | . . 1 34 Missed 9 | . . . 9 Hits 26 | . . 1 25 Projectile 26 | . . 1 25 Critical Strikes 1 | . . . 1 Damage Taken 607 | . . 23 584 Core 260 | . . 23 237 Absorbed by Shields . | . . . . Core Remaining (%) 100 | 100 . . . Volleys Fired 49 | 1 1 19 28 Largest 2 | 2 2 2 2 Hottest 80 | 80 60 60 61 Shots Fired 95 | 2 2 38 53 Gun 79 | 2 2 38 37 Cannon 14 | . . . 14 Launcher . | . . . . Special 2 | . . . 2 Kinetic 51 | . . . 51 Thermal 42 | 2 2 38 . Explosive . | . . . . Electromagnetic . | . . . . Robot Hit Streak 7 | 2 3 7 4 Robot Miss Streak 8 | . . 3 8 Penetration Max . | . . . . Secondary Targets 1 | . . . 1 Max Gunslinging Chain 1 | . . . 1 Shots Hit Robots 64 | 2 1 26 35 Core Hits 21 | 1 1 7 12 Critical Kills . | . . . . Critical Parts Destroyed . | . . . . Critical Strikes . | . . . . Melee Attacks 1 | . . . 1 Impact . | . . . . Slashing 1 | . . . 1 Piercing . | . . . . Sneak Attacks . | . . . . Combat Hostiles . | . . . . Follow-up Attacks . | . . . . Damage Inflicted 901 | 23 10 234 634 Guns 726 | 23 10 234 459 Cannons 138 | . . . 138 Explosions . | . . . . Melee 37 | . . . 37 Ramming . | . . . . Kinetic 597 | . . . 597 Thermal 267 | 23 10 234 . Explosive . | . . . . Electromagnetic . | . . . . Impact . | . . . . Slashing 37 | . . . 37 Piercing . | . . . . Highest Corruption . | . . . . Average Corruption . | . . . . Corruption Purged . | . . . . Corruption Blocked . | . . . . Overload Shots . | . . . . Overflow Damage 2 | . . . 2 Projectiles 2 | . . . 2 Explosions . | . . . . Melee . | . . . . Knockbacks 1 | . . . 1 Impact . | . . . . Kinetic 1 | . . . 1 Secondary . | . . . . Self-Inflicted Damage . | . . . . Shots . | . . . . Rammed . | . . . . Targets Rammed . | . . . . Kicked . | . . . . Crushed . | . . . . Highest Temperature 36 | 18 . . 36 Average Temperature 15 | 12 . . 15 Received Heat Transfer 343 | . . 6 337 Siege Activations . | . . . . Martial Activations . | . . . . Shielding Activations . | . . . . Robots Disrupted . | . . . . Combat Hostiles . | . . . . Robots Corrupted . | . . . . Combat Hostiles . | . . . . Parts Fried . | . . . . Impact Corruptions . | . . . . Robots Melted . | . . . . Combat Hostiles . | . . . . Parts Melted 2 | . . . 2 Heat Transferred 725 | 50 25 650 . Parts Sabotaged . | . . . . Parts Stolen . | . . . . Parts Stripped . | . . . . Power Chain Reactions . | . . . . Alert | -11 -10 -10 -8 ------- Run | Yrd Mat Sub Scr Maximum Alert Level . | . . . . Low Security (%) 100 | 100 100 . . Level 1 . | . . . . Level 2 . | . . . . Level 3 . | . . . . Level 4 . | . . . . Level 5 . | . . . . High Security . | . . . . Max Security . | . . . . Peak Influence 5 | . 5 . . Initial . | . . . . Average . | . . . . Influence Increases 25 | . 5 20 . Destroy 0b10 Robot/C 20 | . . 20 . Destroy 0b10 Robot/NC 5 | . 5 . . Influence Decreases 25 | . 5 20 . Time Decay 25 | . 5 20 . Squads Dispatched . | . . . . Investigation . | . . . . Extermination . | . . . . Reinforcement . | . . . . Assault . | . . . . Garrison . | . . . . Intercept . | . . . . Searches Triggered . | . . . . Construction Impeded . | . . . . Haulers Reinforced . | . . . . Active Scanning Responses . | . . . . Cargo Convoy Interrupts . | . . . . Stealth | -11 -10 -10 -8 --------- Run | Yrd Mat Sub Scr Distress Signals . | . . . . Communications Jammed . | . . . . Distress Signals . | . . . . Times Spotted 18 | . . 4 14 Peak Tracking Total 5 | . . 1 5 Tactical Retreats . | . . . . Traps | -11 -10 -10 -8 ------- Run | Yrd Mat Sub Scr Traps Triggered . | . . . . Indirectly . | . . . . Trap Hack Attempts . | . . . . Triggered . | . . . . Disarmed . | . . . . Reprogrammed . | . . . . Reused . | . . . . Traps Extracted . | . . . . Installed . | . . . . Triggered . | . . . . Machines | -11 -10 -10 -8 ---------- Run | Yrd Mat Sub Scr Machines Disabled 2 | . . . 2 Max in Single Turn 1 | . . . 1 Machines Repaired . | . . . . Machines Dismantled . | . . . . Machines Sabotaged . | . . . . Overloaded Fab Kills . | . . . . Hacking | -11 -10 -10 -8 --------- Run | Yrd Mat Sub Scr Machines Accessed . | . . . . Terminals . | . . . . Fabricators . | . . . . Repair Stations . | . . . . Recycling Units . | . . . . Scanalyzers . | . . . . Garrison Access . | . . . . Total Hacks . | . . . . Successful . | . . . . Failed . | . . . . Catastrophic . | . . . . Database Lockouts . | . . . . Manual . | . . . . Terminals . | . . . . Fabricators . | . . . . Repair Stations . | . . . . Recycling Units . | . . . . Scanalyzers . | . . . . Garrison Access . | . . . . Terminal Hacks . | . . . . Fabricator Hacks . | . . . . Repair Station Hacks . | . . . . Recycling Unit Hacks . | . . . . Scanalyzer . | . . . . Garrison Access Hacks . | . . . . Unauthorized Hacks . | . . . . Terminals . | . . . . Fabricators . | . . . . Repair Stations . | . . . . Recycling Units . | . . . . Scanalyzers . | . . . . Garrison Access . | . . . . Data Cores Recovered . | . . . . Used . | . . . . Hacking Detections . | . . . . Full Trace Events . | . . . . Feedback Events . | . . . . Feedback Blocked . | . . . . Robot Schematics Acquired . | . . . . Robots Built . | . . . . Authchips . | . . . . Time . | . . . . Total Robot Build Rating . | . . . . Part Schematics Acquired . | . . . . Parts Built . | . . . . Authchips . | . . . . Time . | . . . . Total Part Build Rating . | . . . . Part Studies Acquired . | . . . . Parts Repaired . | . . . . Time . | . . . . Parts Recycled . | . . . . Recycled Matter . | . . . . Retrieved Matter . | . . . . Retrieved Components . | . . . . Parts Scanalyzed . | . . . . Part Schematics Acquired . | . . . . Parts Damaged . | . . . . Bothacking | -11 -10 -10 -8 ------------ Run | Yrd Mat Sub Scr Used RIF Installer . | . . . . Robots Hacked . | . . . . Non-combat . | . . . . Combat . | . . . . Robot Hacks Applied . | . . . . Relay Couplers Released . | . . . . Fabnet Peak Effective % . | . . . . Robots Rewired . | . . . . Allies Hacked . | . . . . Hacks Repelled . | . . . . Allies | -11 -10 -10 -8 -------- Run | Yrd Mat Sub Scr Total Allies . | . . . . Largest Group . | . . . . Highest-Rated Group . | . . . . Highest-Rated Ally . | . . . . Total Orders . | . . . . Ally Attacks . | . . . . Total Damage . | . . . . Kills . | . . . . Allies Corrupted . | . . . . Allies Melted 5 | . . . 5 Intel | -11 -10 -10 -8 ------- Run | Yrd Mat Sub Scr Active Infowar (turns) . | . . . . Robot Analysis Total . | . . . . Derelict Logs Recovered 1 | . . 1 . Drone Launches . | . . . . Drone Recoveries . | . . . . Exploration | -11 -10 -10 -8 ------------- Run | Yrd Mat Sub Scr Turns Passed 4815 | 57 186 480 4092 Spaces Moved 2431 | 53 112 338 1928 Core 29 | 29 . . . Treads . | . . . . Legs 2402 | 24 112 338 1928 Wheels . | . . . . Hover . | . . . . Flight . | . . . . Fastest Speed 50 | 50 120 120 120 Average Speed 135 | 81 120 120 140 Slowest Speed 190 | 120 120 120 190 Overloaded Moves . | . . . . Propulsion Burnouts . | . . . . Robots Hopped . | . . . . Potential Cave-ins . | . . . . Cave-ins Triggered . | . . . . Exploration Rate (%) 35 | 3 24 32 81 Regions Visited 3 Branch Regions 2 Pre-discovered Areas . | . . . . Known Exits Taken . | . . . . Unknown Exits Taken 3 | 1 1 1 . Scrap Searched 9 | . . . 9 Spaces Dug . | . . . . Terrain Destroyed . | . . . . Melee . | . . . . Projectile . | . . . . AOE . | . . . . Terrain Rammed . | . . . . Walls Destroyed . | . . . . Machines Disabled . | . . . . Actions | -11 -10 -10 -8 --------- Run | Yrd Mat Sub Scr Total 3884 | 64 163 391 3266 Wait 1329 | . 36 25 1268 Move 2428 | 52 111 337 1928 Hop . | . . . . Pick Up 30 | 6 8 3 13 Fast Attach 3 | . 1 . 2 Attach 15 | 5 3 . 7 Detach 1 | . . . 1 Swap 7 | . . 2 5 Drop 21 | . 3 5 13 Fire 49 | 1 1 19 28 Melee 1 | . . . 1 Ram . | . . . . Kick . | . . . . Crush . | . . . . Escape Stasis . | . . . . Rewire . | . . . . Trap . | . . . . Miscellaneous . | . . . . Route ------- -11/Scrapyard -10/Materials (discovered 2 exits: [*Mat] / [*Sub]) -10/Subcaves -8/Scraptown History --------- Turn | Location | Event 4 | -11/Scrapyard | Discovered new exit (range 13) 58 | -11/Scrapyard | Entered Materials 59 | -10/Materials | Met a group of wandering Federalists 196 | -10/Materials | Discovered new exit (range 12) 200 | -10/Materials | Discovered new exit (range 6) 244 | -10/Materials | Entered Subcaves 245 | -10/Subcaves | Continued accompanying wandering Federalists (5) 284 | -10/Subcaves | A swath of the cavern ceiling suddenly collapsed 305 | -10/Subcaves | Build established: Mutant 473 | -10/Subcaves | Wandering Federalist uncovered a shortcut to Scraptown 539 | -10/Subcaves | Shifting Twisted Machinery released Sub. Monowheel 621 | -10/Subcaves | Learned Materials security intel 724 | -10/Subcaves | Entered Scraptown 1172 | -8/Scraptown | Heard Great Nut preacher, LISTEN AND RECITE! 1178 | -8/Scraptown | Visited TADAMA 1215 | -8/Scraptown | Visited Fellowship of the Rings 1241 | -8/Scraptown | Visited Comm Corps 1298 | -8/Scraptown | Visited Spacefarers 1313 | -8/Scraptown | Visited CR-KLE's Repair Center 1449 | -8/Scraptown | Visited Cyclists 1920 | -8/Scraptown | Visited UFD Registry 1920 | -8/Scraptown | Registered with UFD as "Hellhead" 1962 | -8/Scraptown | Visited Science Testing Area 2000 | -8/Scraptown | Visited Infowarlord's Domain 2040 | -8/Scraptown | Visited Chapter 10 2096 | -8/Scraptown | Visited Scrapoid Pod Storage 2135 | -8/Scraptown | Visited Cartography Club 2183 | -8/Scraptown | Found Surveybot 17 Chip 2557 | -8/Scraptown | Visited Derelict Rescue Squad 2621 | -8/Scraptown | Visited LU-1G1's Boring Crew 2758 | -8/Scraptown | Found DRS Beacon 3094 | -8/Scraptown | Visited Bundlers 4270 | -8/Scraptown | Met Optimus 4270 | -8/Scraptown | Accepted into 0bPrime 4600 | -8/Scraptown | Civil war broke out across Scraptown 4623 | -8/Scraptown | Attached CPS modules to ZP-NPV(j). 4628 | -8/Scraptown | Attached CPS modules to ZP-NPV(j). 4684 | -8/Scraptown | Core integrity fell below 50% 4707 | -8/Scraptown | Lost 4 allies 4810 | -8/Scraptown | Core integrity fell below 20% 4816 | -8/Scraptown | Destroyed by 9W-JEP(j) with Overtuned Pulse Rifle Last Messages --------------- 52-PU9(x) suffers critical hit (Burn). 52-PU9(x) destroyed. Slug penetrates Machine. 4G-OP8(j) suffers critical hit (Burn). Gauss Rifle destroyed. 4G-OP8(j) cannibalizes Lgt. Deuterium Engine to repair Lgt. Deuterium Engine. OS-4ED(j): "0bPrime is tearing us apart, don't fall for it!" OS-4ED(j) destroyed. 4G-OP8(j) destroyed. MN-QI5(j) destroyed. SF-F36(j) cannibalizes Ovr. Titanium Leg to repair Ovr. Titanium Leg. 20-3O6(g) suffers critical hit (Burn). 20-3O6(g) heat short circuits Aluminum Leg. Ovr. Titanium Leg melted. SF-F36(j) destroyed. Acquired 70 matter. Critical hit (Burn: +50). Map ----- +----------------------------------------------------+ | """""""??#"" ""#?# #???????## # #????????????? | | " ??#" "#?# #?????### #????????????? | | "" " """##"" ""#?# #?????#X#### #????????????? | | "" " """##" "#?# #?????### ## #????????????? | | "##"" ""#?# #?????# #????????????? | | "" """## #?# ####### ######????????????? | | ?# #?# # #????????????? | | ?"""""???# #?# # #????????????? | | ??# #????###### ###?# ## ###########????????????? | | ### ########### ##### ## ##?????????????????????? | | """ """"""""""" """"" " ="#?????????????????????? | | !![%*"#?????????????????????? | | =!!=!!!!"#??? ?""??????????????? | | [=*=%=[ "#?? """??????????????? | | % *![! ##" """ "#???????????? | | * [!!j* " " ""????????????? | | """"""""""""""""""""%!=![ "##" " ""????????????? | | """""""""""""""""""" %! "##? " """"????????????? | | # ################"=% % ! ;#??"?? "?????????????? | | ##????????#" =%!;#######??????????????? | | X"#????????#""=%= ==!;"""" #??????????????? | | " "" ##????????#" /%![%[# "#??????????????? | | "" X"#??????###"= =*[[=%# "#??????????????? | | " #########[#"=! =%*## !"#??????????????? | | "" =[=%!=!%!!= =!!= "#??????????????? | | "" =[!==[![[%g =@*## "#??????????????? | | " #########%# *! [[!!## "#??????????????? | | "" ""#??????###" ![=!= ##"""""#??????????????? | | " "" ##????????#"=%=!%= ########??????????????? | | X"#????????#" %[%* "#?????????????????????? | | ##????????# "!!! "#?????????????????????? | | # ################" "####???????##?????????? | | """"""""""""""""""" % ## ########"#?????????? | | """"""""""" """ [ "" g!%!! [ *# #"#?????????? | | !%! ! *[ ##= "#?????????? | | = *= ## "#?????????? | | "## ""#?????????? | | ## "#?????????? | | # " " "#?????????? | | """"" """""""" "" """""" ## " " "#?????????? | | ##### ########### ###### ## """""" "#?????????? | | ??? ?????# #???# ## """"""" "#?????????? | | ? #???# #???# #############?????????? | | """"" #???# #???# #?????????????????????? | | "###" #???# #???# #?????????????????????? | | "???" #???# #???# #?????????????????????? | | ????" #???# ] #???# =############??????????? | | ?????? #???# #???# ! #??????????? | | ???????" #???# #???# ##??????????? | | ????????"#???#######???# #??????????? | +----------------------------------------------------+ Best States ------------- Heat Dissipation 47 Energy Generation 10 Energy Capacity 250 Matter Stores 300 Matter Capacity 300 Sight Range 16 Terrain Scan Density 10 Evasion (%) 55 Targeting Accuracy 5 Item Schematics ----------------- None Robot Schematics ------------------ None Fabricated ------------ Nothing Repaired ---------- Nothing Studied --------- None Alien Tech Used ----------------- None Achievements -------------- None Challenges ------------ None Game ------ Seed PrecisionUltimateGuard Manual? 0 Play Time 00:22:20 Cumulative 228.3 hours Start 2026.01.14 @ 19:46:25 End 2026.01.17 @ 12:59:42 Sessions 1 Manual Loads 0 Difficulty Rogue Special Mode None Game No. 639 Rogue 638 Adventurer 1 Explorer 0 Win Type - Total 0 Types 0/0/0/0/0/0/0/0/0/0 Lore% 65 Gallery% 63 Achievement% 39 Wizard Run 0 Options --------- Layout 1 ASCII 0 Keyboard 0 Movement Mouse Keybinds 0 Fullscreen 1 Font 24/Smallcaps Map View 50x35 Zoom Use 0% Tactical HUD 0 Map Filters NONE Filters NONE Steam 1 RUN: 81eb2fce-b65d-487b-883e-6962d9e6320c